bitfinex-derivatives/quotes_SOLF0:USTF0_20260203
["timestamp","ask_amount","ask_price","bid_price","bid_amount"]
[1770091305333,27.66689822,103.96,103.91,8.6695]
[1770091305737,27.66763895,103.95,103.91,8.6695]
[1770091310236,27.66763895,103.95,103.9,8.6703]
[1770091314736,27.98089877,103.93,103.89,8.6712]
[1770091320647,4.44514529,103.92,103.89,8.6712]
[1770091320846,28.15369459,103.91,103.88,8.672]
[1770091321543,28.15369459,103.91,103.86,388.893]
[1770091321742,4.44514529,103.9,103.86,388.893]
[1770091322350,4.44514529,103.86,103.8,135.0012]
[1770091323249,28.10155936,103.86,103.8,135.0012]
[1770091323447,23.65641407,103.91,103.83,134.9622]
[1770091323648,28.10155936,103.9,103.83,139.40734529]
[1770091324649,28.10155936,103.9,103.83,134.9622]
[1770091324851,28.10155936,103.9,103.85,8.6743]
[1770091326146,29.82290848,103.92,103.85,134.936]
[1770091326454,25.37776319,103.92,103.86,134.9243]
[1770091327151,29.82290848,103.92,103.87,8.6728]
[1770091327456,29.93136064,103.91,103.84,139.38884529]
[1770091327852,29.93136064,103.91,103.85,8.6738]
[1770091328361,29.93670581,103.91,103.85,8.6738]
[1770091328558,25.36946831,103.93,103.88,8.6718]
[1770091328761,29.81995877,103.93,103.88,8.6718]
[1770091335266,29.81995877,103.93,103.87,8.6723]
[1770091335758,31.17348626,103.92,103.87,8.6723]
[1770091341169,22.46827544,103.88,103.82,134.9694]
[1770091342370,22.46827544,103.88,103.84,8.6751]
[1770091342669,7.544e-05,103.88,103.83,138.01985343]
[1770091343265,7.544e-05,103.88,103.85,8.6744]
[1770091343671,4.45049046,103.9,103.85,8.6744]
[1770091343864,4.45049046,103.91,103.85,8.6744]
[1770091344073,4.45049046,103.92,103.86,8.6736]
[1770091344771,16.59080657,103.91,103.86,8.6736]
[1770091344972,16.59080657,103.91,103.87,8.6726]
[1770091347275,4.45049046,103.93,103.88,8.6719]
[1770091349075,4.45049046,103.92,103.88,8.6719]
[1770091349578,21.04129703,103.92,103.88,8.6719]
[1770091351275,21.04129703,103.92,103.87,8.6724]
[1770091351970,16.59080657,103.95,103.89,16.21049051]
[1770091352171,21.04129703,103.95,103.89,16.21049051]
[1770091352873,16.59080657,103.95,103.9,8.6702]
[1770091353266,16.59080657,103.95,103.9,24.88069051]
[1770091353765,21.04129703,103.97,103.91,8.6694]
[1770091353965,16.59080657,103.96,103.91,8.6694]
[1770091355276,21.04129703,103.96,103.91,8.6694]
[1770091356565,16.59080657,103.96,103.91,8.6694]
[1770091356767,16.59080657,103.99,103.92,24.87889051]
[1770091356973,21.04129703,103.98,103.92,24.87889051]
[1770091357677,21.04129703,103.97,103.92,24.87889051]
[1770091357876,16.59080657,103.97,103.92,24.87889051]
[1770091358272,21.04129703,103.97,103.92,16.21049051]
[1770091361083,16.59080657,103.97,103.92,24.87919051]
[1770091363076,4.45049046,103.98,103.93,16.21049051]
[1770091363272,21.04129703,103.98,103.93,16.21049051]
[1770091364487,8.6612,104.01,103.94,16.21049051]
[1770091364684,16.59080657,104.01,103.95,16.21049051]
[1770091364884,21.04129703,104.01,103.95,16.21049051]
[1770091365086,4.45049046,103.99,103.95,16.21049051]
[1770091365281,4.45049046,103.99,103.93,16.21049051]
[1770091365488,21.04129703,103.99,103.93,16.21049051]
[1770091365688,21.04129703,103.99,103.93,24.87829051]
[1770091367189,16.59080657,103.99,103.96,1.0]
[1770091367388,4.45049046,103.98,103.93,24.87829051]
[1770091369090,21.04129703,103.98,103.93,24.87829051]
[1770091369694,21.04129703,103.98,103.93,16.21049051]
[1770091371190,16.59080657,103.98,103.93,24.87809051]
[1770091371900,14.98163142,103.99,103.94,14.14403833]
[1770091372391,13.11259046,104.0,103.95,14.14403833]
[1770091372392,19.43212188,104.0,103.95,14.14403833]
[1770091372798,4.45049046,103.99,103.95,14.14403833]
[1770091373997,19.43212188,103.99,103.94,22.81103833]
[1770091376400,19.43212188,103.99,103.94,14.14403833]
[1770091376799,19.43212188,103.98,103.92,14.14403833]
[1770091376997,4.45049046,104.0,103.95,14.14403833]
[1770091377502,19.43212188,104.0,103.95,14.14403833]
[1770091377798,14.98163142,104.0,103.95,22.81013833]
[1770091378702,4.45049046,104.01,103.96,14.14403833]
[1770091379203,19.43212188,104.01,103.96,14.14403833]
[1770091379405,14.98163142,104.01,103.96,14.14403833]
[1770091379705,19.43212188,104.01,103.96,14.14403833]
[1770091379999,14.98163142,104.01,103.96,22.80933833]
[1770091380204,4.45049046,104.02,103.97,14.14403833]
[1770091380399,19.43212188,104.03,103.97,14.14403833]
[1770091380606,372.17212188,104.05,103.99,14.14403833]
[1770091380805,19.43212188,104.04,103.99,14.14403833]
[1770091381505,19.43212188,104.03,103.97,14.14403833]
[1770091381806,19.43212188,104.02,103.97,14.14403833]
[1770091382800,19.43212188,104.04,103.98,14.14403833]
[1770091383806,19.43212188,104.03,103.98,14.14403833]
[1770091385413,19.43212188,104.02,103.97,14.14403833]
[1770091387206,4.45049046,104.03,103.97,14.14403833]
[1770091387402,19.43212188,104.04,103.98,14.14403833]
[1770091388611,4.45049046,104.03,103.98,14.14403833]
[1770091389111,19.43212188,104.03,103.98,14.14403833]
[1770091389808,19.43212188,104.02,103.97,8.6645]
[1770091390009,4.45049046,104.01,103.96,14.14403833]
[1770091390206,19.43212188,104.01,103.96,14.14403833]
[1770091390407,19.42326944,104.01,103.96,14.14403833]
[1770091390611,4.44163802,104.02,103.97,14.14403833]
[1770091391110,14.98163142,104.03,103.97,18.58567635]
[1770091391304,19.42326944,104.02,103.95,27.25107635]
[1770091391612,14.98163142,104.0,103.95,22.80943833]
[1770091392112,14.98163142,104.0,103.95,14.14403833]
[1770091393510,14.98163142,104.0,103.96,4.44163802]
[1770091394717,14.98163142,104.03,103.98,4.44163802]
[1770091396912,8.6598,104.03,103.96,8.6651]
[1770091397119,14.98163142,104.0,103.95,18.58567635]
[1770091397318,14.98163142,104.02,103.97,4.44163802]
[1770091397519,14.98163142,104.02,103.98,4.44163802]
[1770091397916,14.98163142,104.02,103.99,4.44163802]
[1770091398110,14.98163142,104.02,103.97,4.44163802]
[1770091398517,14.98163142,104.02,103.96,14.14403833]
[1770091398720,14.98163142,104.02,103.97,4.44163802]
[1770091399018,14.98163142,104.02,103.98,4.44163802]
[1770091399221,14.98163142,104.02,103.97,18.58567635]
[1770091399418,14.98163142,104.02,103.98,4.44163802]
[1770091399618,150.5803778,104.06,103.99,4.44163802]
[1770091399619,14.98163142,104.04,103.99,4.44163802]
[1770091400326,14.98163142,104.04,103.98,4.44163802]
[1770091400618,14.98163142,104.04,103.97,8.6644]
[1770091400824,13.22568158,104.0,103.93,14.01279377]
[1770091401119,13.22568158,104.0,103.95,4.44163802]
[1770091401820,13.22568158,104.0,103.94,4.44163802]
[1770091402817,13.22568158,104.0,103.95,4.44163802]
[1770091404524,13.22568158,104.0,103.94,4.44163802]
[1770091405221,13.22568158,103.98,103.92,4.44163802]
[1770091405424,13.22568158,103.98,103.94,4.44163802]
[1770091405620,13.22568158,103.98,103.93,18.45443179]
[1770091409027,13.22568158,103.98,103.94,4.44163802]
[1770091409426,13.22568158,103.98,103.93,18.45443179]
[1770091411521,13.22568158,104.0,103.95,4.44163802]
[1770091411915,13.22568158,104.01,103.96,4.44163802]
[1770091412618,13.22568158,104.01,103.97,4.44163802]
[1770091412923,13.22568158,104.01,103.96,4.44163802]
[1770091415121,13.22568158,104.01,103.95,14.01279377]
[1770091415316,13.22568158,104.01,103.95,18.45443179]
[1770091415923,13.22568158,104.0,103.93,8.6678]
[1770091416126,13.22568158,103.97,103.91,4.44163802]
[1770091416330,13.22568158,103.96,103.89,4.44163802]
[1770091416525,13.22568158,103.96,103.89,13.11253802]
[1770091416927,13.22568158,103.96,103.89,27.12533179]
[1770091417126,13.22568158,103.96,103.91,4.44163802]
[1770091417327,13.22568158,103.96,103.92,4.44163802]
[1770091418121,13.22568158,103.96,103.91,4.44163802]
[1770091418426,13.22568158,103.96,103.92,4.44163802]
[1770091418619,13.22568158,103.96,103.93,4.44163802]
[1770091419327,13.22568158,103.96,103.88,14.01279377]
[1770091419531,13.22568158,103.96,103.9,4.44163802]
[1770091420232,13.22568158,103.96,103.91,4.44163802]
[1770091422835,13.22568158,103.96,103.92,4.44163802]
[1770091423229,13.22568158,103.96,103.91,4.44163802]
[1770091423426,8.6658,103.96,103.88,14.01279377]
[1770091423633,13.22568158,103.93,103.89,4.44163802]
[1770091424637,13.22568158,103.93,103.9,4.44163802]
[1770091425235,13.22568158,103.95,103.91,4.44163802]
[1770091425542,13.22568158,103.95,103.92,4.44163802]
[1770091426638,13.22568158,103.98,103.93,4.44163802]
[1770091428134,13.22568158,103.96,103.87,14.01279377]
[1770091428333,13.22568158,103.95,103.9,4.44163802]
[1770091428841,13.22568158,103.95,103.91,4.44163802]
[1770091430041,13.18871975,103.94,103.9,4.44163802]
[1770091431836,13.18871975,103.94,103.89,4.44163802]
[1770091432737,13.18871975,103.94,103.9,4.44163802]
[1770091433543,13.18871975,103.94,103.91,4.44163802]
[1770091435949,13.36739703,103.96,103.92,4.44163802]
[1770091436650,13.36739703,103.96,103.93,4.44163802]
[1770091436852,13.36739703,103.96,103.92,4.44163802]
[1770091437149,13.36739703,103.96,103.93,4.44163802]
[1770091437739,13.36739703,103.96,103.92,4.44163802]
[1770091438342,13.36739703,103.95,103.91,4.44163802]
[1770091439147,13.36739703,103.95,103.88,13.44642677]
[1770091439347,13.36739703,103.92,103.88,4.44163802]
[1770091439557,13.36739703,103.95,103.9,4.44163802]
[1770091440047,13.36739703,103.95,103.91,4.44163802]
[1770091440452,13.36739703,103.95,103.92,4.44163802]
[1770091440652,13.36739703,103.99,103.93,4.44163802]
[1770091440950,13.36739703,103.99,103.9,13.44642677]
[1770091440951,13.36739703,103.98,103.94,4.44163802]
[1770091441747,22.03109703,103.98,103.94,4.44163802]
[1770091441946,13.36739703,103.97,103.93,4.44163802]
[1770091442150,13.36739703,103.97,103.88,13.44642677]
[1770091442346,13.36739703,103.95,103.9,4.44163802]
[1770091442851,13.36739703,103.98,103.92,4.44163802]
[1770091443351,369.76739703,103.98,103.92,4.44163802]
[1770091443649,13.36739703,103.97,103.92,4.44163802]
[1770091443949,13.36739703,103.97,103.93,4.44163802]
[1770091444342,22.03189703,103.97,103.93,4.44163802]
[1770091444542,22.03189703,103.97,103.94,4.44163802]
[1770091444752,22.03189703,103.97,103.93,4.44163802]
[1770091445149,22.03189703,103.97,103.91,13.44642677]
[1770091445344,22.03189703,103.97,103.92,4.44163802]
[1770091445850,22.03189703,103.97,103.91,13.44642677]
[1770091445851,22.03189703,103.97,103.93,4.44163802]
[1770091446051,22.03189703,103.97,103.92,4.44163802]
[1770091446447,22.03289703,103.96,103.91,13.44642677]
[1770091446652,22.03289703,103.96,103.91,17.88806479]
[1770091446850,22.03289703,103.96,103.91,4.44163802]
[1770091450157,22.03289703,103.96,103.89,13.44642677]
[1770091450454,22.03289703,103.96,103.91,4.44163802]
[1770091450854,22.03359703,103.95,103.91,4.44163802]
[1770091451557,22.03359703,103.95,103.9,4.44163802]
[1770091452053,22.03359703,103.95,103.91,4.44163802]
[1770091452452,22.03359703,103.95,103.91,4.44527245]
[1770091452856,22.03359703,103.95,103.9,17.89169922]
[1770091453061,13.36739703,103.95,103.91,4.44527245]
[1770091454561,13.36739703,103.95,103.9,17.89169922]
[1770091455159,13.36739703,103.95,103.9,13.44642677]
[1770091455358,13.36739703,103.94,103.88,17.89169922]
[1770091456963,22.03439703,103.94,103.88,17.89169922]
[1770091457261,13.36739703,103.93,103.88,17.89169922]
[1770091457861,13.36739703,103.92,103.86,17.89169922]
[1770091458261,13.36739703,103.92,103.87,13.44642677]
[1770091458655,13.36739703,103.92,103.87,17.89169922]
[1770091459160,22.03619703,103.92,103.87,17.89169922]
[1770091459362,13.36739703,103.92,103.88,4.44527245]
[1770091460063,13.36739703,103.95,103.91,4.44527245]
[1770091460359,12.20675618,103.97,103.94,4.44527245]
[1770091461663,12.20675618,103.97,103.92,4.44527245]
[1770091463160,12.20675618,103.97,103.91,16.44345251]
[1770091464669,16.65202863,103.97,103.91,11.99818006]
[1770091466670,25.31662863,103.97,103.91,11.99818006]
[1770091469963,4.44527245,103.96,103.91,11.99818006]
[1770091471065,4.44527245,103.95,103.91,11.99818006]
[1770091472764,134.7589,103.99,103.91,11.99818006]
[1770091472765,12.20675618,103.98,103.91,11.99818006]
[1770091472971,4.44527245,103.97,103.91,11.99818006]
[1770091473472,4.44527245,103.96,103.91,11.99818006]
[1770091474069,4.44527245,103.97,103.91,11.99818006]
[1770091474269,4.44527245,103.97,103.91,20.66738006]
[1770091474671,4.44527245,103.97,103.92,11.99818006]
[1770091475578,16.65202863,103.97,103.92,11.99818006]
[1770091476780,16.65202863,103.97,103.92,20.66688006]
[1770091477272,16.65202863,103.97,103.92,11.99818006]
[1770091477473,4.44527245,103.96,103.92,11.99818006]
[1770091477779,4.44527245,103.94,103.9,11.99818006]
[1770091478678,4.44527245,103.93,103.88,20.66938006]
[1770091478878,4.44527245,103.93,103.89,11.99818006]
[1770091479876,4.44527245,103.92,103.88,8.6712]
[1770091480077,4.44527245,103.92,103.88,20.66938006]
[1770091481074,4.44527245,103.91,103.86,20.67128006]
[1770091481279,4.44527245,103.91,103.86,11.99818006]
[1770091481577,4.44527245,103.9,103.86,11.99818006]
[1770091483280,4.44527245,103.89,103.86,11.99818006]
[1770091485673,16.65202863,103.89,103.84,8.6753]
[1770091485979,4.44527245,103.88,103.84,8.6753]
[1770091486273,4.44527245,103.88,103.84,20.67348006]
[1770091486881,16.65202863,103.89,103.84,20.67348006]
[1770091487982,4.44527245,103.89,103.85,11.99818006]
[1770091490786,4.44527245,103.88,103.85,11.99818006]
[1770091493483,11.5791939,103.9,103.85,11.99818006]
[1770091493688,4.44527245,103.89,103.85,11.99818006]
[1770091495483,4.44527245,103.87,103.83,11.89205087]
[1770091496486,16.55114614,103.88,103.84,11.89205087]
[1770091496984,4.44527245,103.88,103.84,11.89205087]
[1770091497982,134.8506,103.92,103.85,11.89205087]
[1770091497983,20.77497369,103.92,103.85,11.89205087]
[1770091498284,163.7118,103.94,103.85,11.89205087]
[1770091498285,4.44527245,103.89,103.85,11.89205087]
[1770091498479,4.44527245,103.9,103.85,11.89205087]
[1770091500286,4.44527245,103.9,103.85,20.56655087]
[1770091500492,4.44527245,103.9,103.86,11.89205087]
[1770091500792,20.77457369,103.92,103.86,11.89205087]
[1770091500793,4.44527245,103.91,103.86,11.89205087]
[1770091500991,4.44527245,103.91,103.87,11.89205087]
[1770091501584,16.55114614,103.92,103.87,11.89205087]
[1770091501982,4.44527245,103.91,103.87,11.89205087]
[1770091502187,16.55114614,103.92,103.87,11.89205087]
[1770091502395,12.10587369,103.92,103.87,11.89205087]
[1770091502585,16.55114614,103.91,103.85,11.89205087]
[1770091502790,4.44527245,103.89,103.85,11.89205087]
[1770091503291,4.44527245,103.88,103.83,20.56745087]
[1770091503492,4.44527245,103.88,103.84,11.89205087]
[1770091503689,4.44527245,103.87,103.84,11.89205087]
[1770091503882,4.44527245,103.88,103.84,11.89205087]
[1770091506095,16.55114614,103.89,103.84,11.89205087]
[1770091506496,4.44527245,103.88,103.84,11.89205087]
[1770091507997,4.44527245,103.89,103.85,11.89205087]
[1770091508989,4.44527245,103.88,103.83,11.89205087]
[1770091510391,4.44527245,103.87,103.84,11.89205087]
[1770091510689,16.55114614,103.89,103.84,11.89205087]
[1770091512298,16.55114614,103.89,103.84,20.56825087]
[1770091512498,16.55114614,103.89,103.84,11.89205087]
[1770091512698,4.44527245,103.87,103.84,11.89205087]
[1770091512998,4.44527245,103.88,103.84,11.89205087]
[1770091513894,4.44527245,103.87,103.84,11.89205087]
[1770091514500,4.45373239,103.87,103.84,11.89205087]
[1770091514898,4.45373239,103.87,103.83,8.677]
[1770091515204,4.45373239,103.87,103.83,20.56905087]
[1770091519305,40.99587369,103.93,103.84,11.89205087]
[1770091519504,16.55960608,103.92,103.87,11.89205087]
[1770091519903,4.45373239,103.91,103.87,11.89205087]
[1770091520304,16.55960608,103.92,103.87,11.89205087]
[1770091520504,4.45373239,103.91,103.87,11.89205087]
[1770091521403,16.32018114,103.91,103.86,8.6745]
[1770091521601,16.32018114,103.91,103.86,19.91832731]
[1770091523006,16.32018114,103.9,103.84,19.91962731]
[1770091523306,4.45373239,103.9,103.85,11.24382731]
[1770091523909,4.45373239,103.9,103.85,19.91892731]
[1770091524216,16.32018114,103.91,103.86,11.24382731]
[1770091528814,4.45373239,103.9,103.86,11.24382731]
[1770091529416,16.32018114,103.91,103.86,11.24382731]
[1770091531113,4.45373239,103.91,103.85,8.6751]
[1770091531314,4.45373239,103.89,103.84,11.24382731]
[1770091532018,16.32018114,103.9,103.84,11.24382731]
[1770091532716,16.32018114,103.88,103.82,289.60382731]
[1770091532918,4.45373239,103.87,103.82,289.60382731]
[1770091533116,16.32018114,103.87,103.82,11.24382731]
[1770091533420,4.45373239,103.86,103.82,11.24382731]
[1770091535322,11.86644875,103.85,103.8,19.92342731]
[1770091535620,16.32018114,103.85,103.8,19.92342731]
[1770091536021,16.32018114,103.85,103.8,11.24382731]
[1770091536418,4.45373239,103.84,103.8,11.24382731]
[1770091537718,11.86644875,103.83,103.77,11.24382731]
[1770091538113,16.32018114,103.83,103.77,11.24382731]
[1770091538524,16.32018114,103.83,103.77,19.92582731]
[1770091538730,16.32018114,103.83,103.78,11.24382731]
[1770091539524,4.45373239,103.84,103.78,11.24382731]
[1770091541032,4.45373239,103.84,103.79,19.92412731]
[1770091541432,11.86644875,103.85,103.8,11.24382731]
[1770091541636,16.32018114,103.86,103.8,11.24382731]
[1770091541833,4.45373239,103.85,103.8,11.24382731]
[1770091542333,4.45373239,103.84,103.8,11.24382731]
[1770091543034,4.45373239,103.83,103.78,11.24382731]
[1770091543529,4.45373239,103.83,103.78,19.92492731]
[1770091546526,11.86644875,103.87,103.8,11.24382731]
[1770091546726,4.45373239,103.86,103.8,11.24382731]
[1770091547335,4.45373239,103.86,103.81,11.24382731]
[1770091548327,11.86644875,103.87,103.82,11.24382731]
[1770091548532,16.32018114,103.87,103.82,11.24382731]
[1770091549333,11.86644875,103.87,103.82,11.24382731]
[1770091549537,16.32018114,103.88,103.82,11.24382731]
[1770091550240,4.45373239,103.89,103.83,19.92072731]
[1770091552939,19.92327577,103.9,103.84,11.44840611]
[1770091553243,4.45373239,103.89,103.84,11.44840611]
[1770091553640,19.92327577,103.9,103.84,11.44840611]
[1770091553839,15.70500816,103.9,103.84,20.12440611]
[1770091558746,11.76922379,103.87,103.82,11.44840611]
[1770091559041,16.22295618,103.87,103.82,11.44840611]
[1770091559446,4.45373239,103.88,103.82,11.44840611]
[1770091560352,13.12663239,103.88,103.82,11.44840611]
[1770091560845,24.27898619,103.88,103.82,11.44840611]
[1770091563648,11.1523538,103.91,103.85,11.52872183]
[1770091563853,11.1523538,103.91,103.88,4.45373239]
[1770091564753,11.1523538,103.95,103.9,4.45373239]
[1770091564947,11.1523538,103.95,103.91,4.45373239]
[1770091565647,11.1523538,103.95,103.9,4.45373239]
[1770091566956,11.1523538,103.95,103.91,4.45373239]
[1770091567749,11.1523538,103.95,103.88,8.6726]
[1770091567949,11.1523538,103.94,103.88,4.45373239]
[1770091568156,11.1523538,103.94,103.87,15.98245422]
[1770091568454,11.1523538,103.92,103.87,11.52872183]
[1770091569948,11.1523538,103.91,103.85,20.20392183]
[1770091570147,15.60608619,103.91,103.85,20.20392183]
[1770091570953,11.1523538,103.91,103.85,20.20392183]
[1770091571155,15.60608619,103.91,103.85,20.20392183]
[1770091571353,11.1523538,103.91,103.85,20.20392183]
[1770091571655,4.45373239,103.9,103.85,20.20392183]
[1770091573355,4.45373239,103.89,103.85,11.52872183]
[1770091574746,4.45373239,103.91,103.86,11.52872183]
[1770091575148,15.60608619,103.92,103.86,11.52872183]
[1770091576358,4.44978732,103.91,103.86,11.52872183]
[1770091577556,4.44978732,103.91,103.86,20.20302183]
[1770091577757,15.60214112,103.92,103.87,11.52872183]
[1770091578150,15.60214112,103.92,103.87,20.20242183]
[1770091579558,4.44978732,103.91,103.87,11.52872183]
[1770091580555,15.7038248,103.9,103.85,11.99222014]
[1770091581456,15.7038248,103.9,103.85,20.66762014]
[1770091581859,4.44978732,103.89,103.85,20.66762014]
[1770091582353,15.7038248,103.9,103.85,20.66762014]
[1770091583260,15.7038248,103.9,103.85,11.99222014]
[1770091583261,4.44978732,103.89,103.85,11.99222014]
[1770091584052,4.44978732,103.88,103.83,11.99222014]
[1770091585762,4.44978732,103.88,103.83,20.66922014]
[1770091585962,4.44978732,103.87,103.83,20.66922014]
[1770091586661,4.44978732,103.87,103.83,11.99222014]
[1770091590462,15.7038248,103.87,103.82,8.6778]
[1770091590664,4.44978732,103.86,103.82,8.6778]
[1770091590965,4.44978732,103.86,103.82,20.67002014]
[1770091593163,15.7038248,103.87,103.82,20.67002014]
[1770091593968,28.89,103.92,103.83,11.99222014]
[1770091594173,4.44978732,103.91,103.86,11.99222014]
[1770091595067,15.7038248,103.91,103.86,11.99222014]
[1770091596472,15.7038248,103.91,103.86,20.66662014]
[1770091596473,11.25403748,103.91,103.86,20.66662014]
[1770091596774,15.7038248,103.93,103.86,11.99222014]
[1770091598073,11.25403748,103.9,103.85,8.6746]
[1770091598274,15.7038248,103.9,103.84,11.99222014]
[1770091598772,11.25403748,103.9,103.84,11.99222014]
[1770091598971,11.25403748,103.9,103.85,8.6754]
[1770091599179,11.25403748,103.9,103.85,20.66762014]
[1770091601669,4.44978732,103.91,103.86,11.99222014]
[1770091601869,24.3734248,103.92,103.86,11.99222014]
[1770091604681,15.7038248,103.91,103.86,11.99222014]
[1770091605080,4.44978732,103.9,103.86,11.99222014]
[1770091608284,4.44978732,103.9,103.86,20.66672014]
[1770091609081,15.7038248,103.89,103.84,11.99222014]
[1770091609284,4.44978732,103.9,103.84,11.99222014]
[1770091609983,4.44978732,103.9,103.84,20.66832014]
[1770091610780,13.12128732,103.9,103.84,20.66832014]
[1770091612084,13.12128732,103.9,103.85,11.12693824]
[1770091612379,8.6715,103.9,103.85,11.12693824]
[1770091612580,13.12128732,103.9,103.85,11.12693824]
[1770091613083,24.43532088,103.9,103.85,11.12693824]
[1770091618683,24.43592088,103.89,103.84,8.6761]
[1770091618989,24.43592088,103.89,103.84,19.80303824]
[1770091620684,24.43592088,103.89,103.84,11.12693824]
[1770091620989,15.76382088,103.88,103.83,11.12693824]
[1770091621887,11.31403356,103.88,103.83,11.12693824]
[1770091623690,11.31403356,103.88,103.84,11.12693824]
[1770091631195,11.31403356,103.87,103.82,19.80473824]
[1770091631395,15.76382088,103.87,103.82,11.12693824]
[1770091632294,24.43782088,103.87,103.82,11.12693824]
[1770091632493,4.44978732,103.86,103.82,11.12693824]
[1770091632792,24.43782088,103.87,103.82,11.12693824]
[1770091634398,13.12278732,103.88,103.83,11.12693824]
[1770091636396,13.1253185,103.88,103.83,11.12693824]
[1770091636896,8.673,103.88,103.83,11.12693824]
[1770091637994,13.1253185,103.88,103.83,11.12693824]
[1770091643307,24.79025824,103.88,103.83,11.12693824]
[1770091644906,16.11725824,103.88,103.83,11.12693824]
[1770091645307,11.66493974,103.88,103.83,11.12693824]
[1770091647206,13.1244185,103.89,103.84,11.22394169]
[1770091647507,24.78935824,103.89,103.84,11.22394169]
[1770091649103,16.11725824,103.89,103.85,11.22394169]
[1770091649305,4.4523185,103.89,103.85,11.22394169]
[1770091649500,13.1219185,103.92,103.87,11.22394169]
[1770091649808,16.11725824,103.92,103.87,11.22394169]
[1770091650006,4.4523185,103.9,103.84,134.9638]
[1770091650203,4.4523185,103.9,103.86,11.22394169]
[1770091650604,16.11725824,103.9,103.85,8.6748]
[1770091650810,4.4523185,103.89,103.84,11.22394169]
[1770091653013,16.11725824,103.89,103.84,11.22394169]
[1770091653207,16.11725824,103.89,103.84,19.90014169]
[1770091654014,4.4523185,103.88,103.84,19.90014169]
[1770091655409,16.11725824,103.89,103.84,19.90014169]
[1770091655615,16.11725824,103.89,103.84,11.22394169]
[1770091656417,24.78935824,103.89,103.84,11.22394169]
[1770091657117,4.4523185,103.88,103.84,11.22394169]
[1770091657319,24.78935824,103.89,103.84,11.22394169]
[1770091657518,16.11725824,103.89,103.84,11.22394169]
[1770091659815,20.33523974,103.92,103.87,11.22394169]
[1770091660012,16.11725824,103.91,103.87,11.22394169]
[1770091661118,11.66493974,103.91,103.87,11.22394169]
[1770091662420,11.66493974,103.91,103.86,8.6746]
[1770091662627,11.66493974,103.91,103.86,19.89854169]
[1770091663422,16.11725824,103.92,103.87,11.22394169]
[1770091666435,11.66493974,103.92,103.87,11.22394169]
[1770091666735,16.11725824,103.92,103.87,11.22394169]
[1770091670631,16.28213279,103.91,103.87,11.22394169]
[1770091673040,16.28213279,103.91,103.85,19.7002629]
[1770091673242,16.28213279,103.91,103.86,11.0248629]
[1770091673740,11.82981429,103.91,103.86,11.0248629]
[1770091675342,16.28213279,103.91,103.86,11.0248629]
[1770091675737,8.6699,103.92,103.87,11.0248629]
[1770091676045,20.49971429,103.92,103.87,11.0248629]
[1770091677845,24.95203279,103.92,103.87,11.0248629]
[1770091680443,16.28213279,103.9,103.85,19.7002629]
[1770091681639,4.4523185,103.89,103.85,11.0248629]
[1770091682244,24.95343279,103.9,103.85,11.0248629]
[1770091684253,16.28213279,103.89,103.85,11.0248629]
[1770091685048,24.95443279,103.89,103.85,11.0248629]
[1770091685851,11.82981429,103.89,103.85,11.0248629]
[1770091693150,24.95243279,103.92,103.86,11.0248629]
[1770091693556,4.4523185,103.95,103.9,11.0248629]
[1770091693759,16.28213279,103.95,103.9,11.0248629]
[1770091694156,11.82981429,103.95,103.9,11.0248629]
[1770091694559,11.82981429,103.95,103.91,4.4523185]
[1770091695355,11.82981429,103.95,103.91,15.4771814]
[1770091695663,11.82981429,103.99,103.94,4.4523185]
[1770091695862,11.82981429,103.99,103.95,4.4523185]
[1770091696359,11.82981429,103.99,103.95,4.44123869]
[1770091696667,11.82981429,103.99,103.94,11.0248629]
[1770091697460,11.82981429,103.99,103.94,19.6925629]
[1770091698767,16.27105298,103.99,103.94,11.0248629]
[1770091698963,4.44123869,103.98,103.94,11.0248629]
[1770091699164,4.44123869,103.96,103.92,11.0248629]
[1770091699662,16.27105298,103.97,103.92,11.0248629]
[1770091702265,11.82981429,103.97,103.92,19.6943629]
[1770091707760,23.9200428,103.99,103.94,10.85909838]
[1770091707963,23.9191428,104.01,103.95,10.85909838]
[1770091708271,10.81500411,104.01,103.96,10.85909838]
[1770091709870,10.81500411,104.01,103.96,15.30033707]
[1770091710370,10.81500411,104.01,103.96,10.85909838]
[1770091710967,23.9166428,104.03,103.97,10.85909838]
[1770091711170,10.81500411,104.02,103.97,10.85909838]
[1770091712871,15.2562428,104.02,103.97,10.85909838]
[1770091713869,10.81500411,104.02,103.97,10.85909838]
[1770091715071,15.2562428,104.02,103.97,10.85909838]
[1770091715372,10.81500411,104.02,103.97,10.85909838]
[1770091716071,15.2562428,104.02,103.97,10.85909838]
[1770091718574,15.2562428,104.01,103.97,10.85909838]
[1770091718769,15.2562428,104.01,103.95,19.52609838]
[1770091719075,15.2562428,104.0,103.95,10.85909838]
[1770091720270,15.2562428,104.0,103.95,19.52609838]
[1770091722876,10.81500411,104.0,103.95,19.52609838]
[1770091724069,10.81500411,104.0,103.96,19.52519838]
[1770091724378,15.2562428,104.02,103.97,10.85909838]
[1770091727183,4.44123869,104.01,103.97,10.85909838]
[1770091727484,10.81500411,103.98,103.94,383.74]
[1770091727680,15.2562428,103.98,103.93,10.85909838]
[1770091727983,4.44123869,103.96,103.92,19.52779838]